Cogmind - Beta 10.2 @@@ ROGUE MODE // 2021.11.25 @ 01:19:39 Player: Azken Zutik Result: Destroyed by D-53 Grenadier with Mini Grenade Launcher Performance ------------- Evolutions (1) 500 Regions Visited (3) 600 Robots Destroyed (2) 10 Value Destroyed (8) 8 Prototype IDs (1) 20 Alien Tech Used (0) 0 Bonus (267) 267 TOTAL SCORE: 1405 Bonus ------- Pacifist 200 Follower Combat Kills 67 Cogmind --------- Core Integrity 0/400 Matter 300/300 Energy 99/100 System Corruption 0% Temperature Cool (0) Movement Core (50) Location -9/Mines Parts ------- > --- POWER (1) -------- (None) > --- PROPULSION (2) --- (None) > --- UTILITY (4) ------ (None) > --- WEAPON (2) ------- (None) > --- INVENTORY (4) ---- Light Ion Engine Peak State ------------ > --- POWER ------------ (None) > --- PROPULSION ------- (None) > --- UTILITY ---------- Thief Drone Bay > --- WEAPON ----------- Hammer > --- INVENTORY -------- (None) [Rating: 8] Favorites ----------- Power None Propulsion None Utility Thief Drone Bay Device Thief Drone Bay Weapon Hammer Impact Weapon Hammer Build | -11 -10 -9 -9 ------- Run | Scr Mat Mat Min Slots Evolved 2 | . . 2 . Power . | . . . . Propulsion . | . . . . Utility 2 | . . 2 . Weapon . | . . . . Parts Attached 2 | . 1 . 1 Power . | . . . . Engine . | . . . . Core . | . . . . Reactor . | . . . . Propulsion . | . . . . Treads . | . . . . Leg . | . . . . Wheel . | . . . . Hover . | . . . . Flight . | . . . . Utility 1 | . . . 1 Device 1 | . . . 1 Storage . | . . . . Processor . | . . . . Hackware . | . . . . Protection . | . . . . Artifact . | . . . . Weapon 1 | . 1 . . Energy Gun . | . . . . Energy Cannon . | . . . . Ballistic Gun . | . . . . Ballistic Cannon . | . . . . Launcher . | . . . . Special Weapon . | . . . . Impact Weapon 1 | . 1 . . Slashing Weapon . | . . . . Piercing Weapon . | . . . . Special Melee Weapon . | . . . . Unidentified Prototypes 1 | . . . 1 Parts Lost 2 | . . . 2 Power . | . . . . Propulsion . | . . . . Utility 1 | . . . 1 Weapon 1 | . . . 1 Highest Loss Streak 2 | . . . 2 Average Slot Usage (%) 13 | . 8 11 16 Device 2 | . . . 5 Impact Weapon 10 | . 8 11 11 Naked Turns 31 | . 28 . 3 Heaviest Build 6 | . 2 2 6 Greatest Support 3 | 3 3 3 3 Greatest Overweight (x) 1 | . . . 1 Average Overweight (x) . | . . . . Largest Inventory Capacity 4 | 4 4 4 4 Average Capacity 4 | 4 4 4 4 Most Carried 1 | . . . 1 Average Carried . | . . . . Final Capacity 4 | 4 4 4 4 Final Carried 1 | . . . 1 Class Distribution -------------------- 100% | Mutant Dominant Class ---------------- Mutant | -10/Materials Mutant | -9/Materials Mutant | -9/Mines Resources | -11 -10 -9 -9 ----------- Run | Scr Mat Mat Min Matter Collected 220 | 108 . 102 10 Remotely . | . . . . Salvage Created 45 | . . . 45 Parts 1 | . . . 1 Haulers Intercepted . | . . . . Recyclers Shooed . | . . . . Parts Field Recycled . | . . . . Retrieved Matter . | . . . . Parts Self-Destructed . | . . . . Prevented . | . . . . Kills | -11 -10 -9 -9 ------- Run | Scr Mat Mat Min Combat Hostiles Destroyed . | . . . . Classes Destroyed 2 | . . . 2 Worker 1 | . . . 1 Tunneler 1 | . . . 1 Best Kill Streak 1 | . . . 1 Combat Bots Only . | . . . . Max Kills in Single Turn 1 | . . . 1 Gunslinging . | . . . . Exploded . | . . . . Melee . | . . . . Uniques/NPCs Destroyed . | . . . . Combat | -11 -10 -9 -9 -------- Run | Scr Mat Mat Min Damage Taken 658 | . . 160 498 Core 408 | . . 123 285 Absorbed by Shields . | . . . . Core Remaining (%) 100 | 100 100 . . Volleys Fired . | . . . . Largest . | . . . . Hottest . | . . . . Shots Fired . | . . . . Gun . | . . . . Cannon . | . . . . Launcher . | . . . . Special . | . . . . Kinetic . | . . . . Thermal . | . . . . Explosive . | . . . . Electromagnetic . | . . . . Robot Hit Streak . | . . . . Robot Miss Streak . | . . . . Penetration Max . | . . . . Secondary Targets . | . . . . Shots Hit Robots 4 | . . . 4 Core Hits . | . . . . Critical Hits . | . . . . Critical Kills . | . . . . Critical Parts Destroyed . | . . . . Melee Attacks 24 | . 1 9 14 Impact 24 | . 1 9 14 Slashing . | . . . . Piercing . | . . . . Sneak Attacks 3 | . . . 3 Combat Hostiles . | . . . . Follow-up Attacks . | . . . . Damage Inflicted 152 | . . . 152 Guns . | . . . . Cannons . | . . . . Explosions . | . . . . Melee 152 | . . . 152 Ramming . | . . . . Kinetic . | . . . . Thermal . | . . . . Explosive . | . . . . Electromagnetic . | . . . . Impact 152 | . . . 152 Slashing . | . . . . Piercing . | . . . . Highest Corruption . | . . . . Average Corruption . | . . . . Corruption Purged . | . . . . Overload Shots . | . . . . Overflow Damage 38 | . . . 38 Projectiles . | . . . . Explosions . | . . . . Melee 38 | . . . 38 Knockbacks 1 | . . . 1 Impact 1 | . . . 1 Kinetic . | . . . . Secondary . | . . . . Self-Inflicted Damage . | . . . . Shots . | . . . . Rammed . | . . . . Targets Rammed . | . . . . Kicked . | . . . . Crushed . | . . . . Highest Temperature . | . . . . Average Temperature . | . . . . Received Heat Transfer 30 | . . 30 . Siege Activations . | . . . . Robots Corrupted . | . . . . Combat Hostiles . | . . . . Parts Fried 3 | . . . 3 Impact Corruptions 2 | . . . 2 Robots Melted . | . . . . Combat Hostiles . | . . . . Parts Melted . | . . . . Heat Transferred . | . . . . Parts Sabotaged . | . . . . Parts Stolen . | . . . . Parts Stripped . | . . . . Power Chain Reactions . | . . . . Missiles Intercepted . | . . . . Alert | -11 -10 -9 -9 ------- Run | Scr Mat Mat Min Peak Influence 290 | . 28 146 290 Initial 62 | . . 11 62 Average 79 | . 4 65 119 Maximum Alert Level 1 | . . . 1 Low Security (%) 90 | 100 100 100 79 Level 1 9 | . . . 20 Level 2 . | . . . . Level 3 . | . . . . Level 4 . | . . . . Level 5 . | . . . . High Security . | . . . . Max Security . | . . . . Squads Dispatched 2 | . . 2 . Investigation 1 | . . 1 . Extermination . | . . . . Reinforcement 1 | . . 1 . Assault . | . . . . Garrison . | . . . . Intercept . | . . . . Construction Impeded . | . . . . Haulers Reinforced . | . . . . Stealth | -11 -10 -9 -9 --------- Run | Scr Mat Mat Min Distress Signals 1 | . . 1 . Communications Jammed . | . . . . Distress Signals . | . . . . Times Spotted 26 | . 1 18 7 Peak Tracking Total 14 | . 1 14 5 Tactical Retreats 4 | . . 3 1 Traps | -11 -10 -9 -9 ------- Run | Scr Mat Mat Min Traps Triggered 1 | . . 1 . Indirectly . | . . . . Trap Hack Attempts . | . . . . Triggered . | . . . . Disarmed . | . . . . Reprogrammed . | . . . . Reused . | . . . . Traps Extracted . | . . . . Installed . | . . . . Triggered . | . . . . Machines | -11 -10 -9 -9 ---------- Run | Scr Mat Mat Min Machines Disabled . | . . . . Max in Single Turn . | . . . . Machines Sabotaged . | . . . . Garrisons Compromised . | . . . . Overloaded Fab Kills . | . . . . Fab Network Shutdowns . | . . . . Hacking | -11 -10 -9 -9 --------- Run | Scr Mat Mat Min Machines Accessed 3 | . 2 . 1 Terminals 2 | . 2 . . Fabricators . | . . . . Repair Stations . | . . . . Recycling Units . | . . . . Scanalyzers . | . . . . Garrison Access . | . . . . Total Hacks 5 | . 4 . 1 Successful 3 | . 2 . 1 Failed 2 | . 2 . . Catastrophic . | . . . . Database Lockouts . | . . . . Manual 1 | . 1 . . Terminals 4 | . 4 . . Fabricators . | . . . . Repair Stations . | . . . . Recycling Units . | . . . . Scanalyzers . | . . . . Garrison Access . | . . . . Terminal Hacks 3 | . 2 . 1 Open Door 1 | . . . 1 Level Access Points 1 | . 1 . . Locate Traps 1 | . 1 . . Fabricator Hacks . | . . . . Repair Station Hacks . | . . . . Recycling Unit Hacks . | . . . . Scanalyzer . | . . . . Garrison Access Hacks . | . . . . Unauthorized Hacks . | . . . . Terminals . | . . . . Fabricators . | . . . . Repair Stations . | . . . . Recycling Units . | . . . . Scanalyzers . | . . . . Garrison Access . | . . . . Data Cores Recovered . | . . . . Used . | . . . . Hacking Detections 1 | . 1 . . Full Trace Events . | . . . . Feedback Events . | . . . . Feedback Blocked . | . . . . Robot Schematics Acquired . | . . . . Robots Built . | . . . . Matter . | . . . . Time . | . . . . Total Robot Build Rating . | . . . . Part Schematics Acquired . | . . . . Parts Built . | . . . . Matter . | . . . . Time . | . . . . Total Part Build Rating . | . . . . Parts Repaired . | . . . . Time . | . . . . Parts Recycled . | . . . . Recycled Matter . | . . . . Retrieved Matter . | . . . . Retrieved Components . | . . . . Parts Scanalyzed . | . . . . Part Schematics Acquired . | . . . . Parts Damaged . | . . . . Bothacking | -11 -10 -9 -9 ------------ Run | Scr Mat Mat Min Used RIF Installer . | . . . . Robots Hacked . | . . . . Non-combat . | . . . . Combat . | . . . . Robot Hacks Applied . | . . . . Relay Couplers Released . | . . . . Robots Rewired . | . . . . Allies Hacked . | . . . . Hacks Repelled . | . . . . Allies | -11 -10 -9 -9 -------- Run | Scr Mat Mat Min Total Allies 2 | . . . 2 Largest Group 2 | . . . 2 Highest-Rated Group 47 | . . . 47 Highest-Rated Ally 31 | . . . 31 Total Orders 1 | . . . 1 EXPLORE 1 | . . . 1 Ally Attacks 31 | . . . 31 Total Damage 240 | . . . 240 Kills 9 | . . . 9 Allies Corrupted . | . . . . Allies Melted . | . . . . Intel | -11 -10 -9 -9 ------- Run | Scr Mat Mat Min Robot Analysis Total . | . . . . Derelict Logs Recovered 1 | . . . 1 Drone Launches 3 | . . . 3 Drone Recoveries 1 | . . . 1 Exploration | -11 -10 -9 -9 ------------- Run | Scr Mat Mat Min Turns Passed 344 | 10 57 110 167 Spaces Moved 476 | 19 106 175 176 Core 476 | 19 106 175 176 Treads . | . . . . Legs . | . . . . Wheels . | . . . . Hover . | . . . . Flight . | . . . . Fastest Speed 50 | 50 50 50 50 Average Speed 57 | 50 50 50 71 Slowest Speed 100 | 50 50 50 100 Overloaded Moves . | . . . . Propulsion Burnouts . | . . . . Robots Hopped . | . . . . Cave-ins Triggered 1 | . . . 1 Exploration Rate (%) 22 | 3 18 24 46 Regions Visited 3 Branch Regions 1 Pre-discovered Areas . | . . . . Known Exits Taken 1 | . 1 . . Unknown Exits Taken 2 | 1 . 1 . Scrap Searched . | . . . . Spaces Dug 7 | . 1 4 2 Terrain Destroyed 7 | . 1 4 2 Melee 7 | . 1 4 2 Projectile . | . . . . AOE . | . . . . Terrain Rammed . | . . . . Walls Destroyed . | . . . . Machines Disabled . | . . . . Actions | -11 -10 -9 -9 --------- Run | Scr Mat Mat Min Total 504 | 18 107 183 196 Wait 4 | . . . 4 Move 473 | 18 105 174 176 Hop . | . . . . Pick Up 1 | . . . 1 Fast Attach 1 | . 1 . . Attach 1 | . . . 1 Detach . | . . . . Swap . | . . . . Drop . | . . . . Fire . | . . . . Melee 24 | . 1 9 14 Ram . | . . . . Kick . | . . . . Crush . | . . . . Escape Stasis . | . . . . Rewire . | . . . . Trap . | . . . . Miscellaneous . | . . . . Route ------- -11/Scrapyard -10/Materials (discovered 3 exits: *Mat x3) -9/Materials -9/Mines (discovered 1 exit: [*Mat]) History --------- Turn | Location | Event 3 | -11/Scrapyard | Discovered new exit (range 15) 11 | -11/Scrapyard | Entered Materials 56 | -10/Materials | Identified exit to Materials 68 | -10/Materials | Entered another Materials area 68 | -9/Materials | Evolved 2 slots: Utility x2 172 | -9/Materials | Discovered new exit (range 14) 178 | -9/Materials | Entered Mines 179 | -9/Mines | Assembled infested the area 238 | -9/Mines | Crushed by falling debris 238 | -9/Mines | Core integrity fell below 50% 248 | -9/Mines | Learned Materials terminal intel 258 | -9/Mines | Found the Drone Emporium 259 | -9/Mines | Found Prototype Device 260 | -9/Mines | Identified Thief Drone Bay 300 | -9/Mines | Build established: Mutant 339 | -9/Mines | Discovered new exit (range 12) 343 | -9/Mines | Core integrity fell below 20% 345 | -9/Mines | Destroyed by D-53 Grenadier with Mini Grenade Launcher Last Messages --------------- 00315_ S-10 Pest destroyed. 00330_ K-01 Serf collects debris. 00332_ Sneak attack on K-01 Serf. 00332_ K-01 Serf knocked back. 00336_ K-01 Serf destroyed. 00337_ K-01 Serf collects debris. 00339_ U-05 Engineer lays Concrete. 00339_ EXIT=FOUND 00340_ Thief Drone Bay destroyed. 00340_ U-05 Engineer lays Concrete. 00341_ K-01 Serf collects debris. 00341_ U-05 Engineer lays Concrete. 00342_ The unstable cave ceiling collapses. 00342_ Hammer destroyed. 00342_ U-05 Engineer lays Concrete. 00342_ D-53 Grenadier destroyed. 00343_ The unstable cave ceiling collapses. 00343_ T-07 Excavator destroyed. 00343_ U-05 Engineer builds a Wall. 00344_ The unstable cave ceiling collapses. Map ----- +----------------------------------------------------+ | #### ### #?????????????????????????????????? | | # #?????????????????????????????????? | | #####?????????????????????????????????? | | #?????????????????????????????????????? | | ##?????????????????????????????????????? | | ###??????????????????????????????????????? | | ###????????????????????????????????????????? | | ##??????????????????????????????????????????? | | ##???????????????????????????????????????????? | | ##????????????????????????????????????????????? | | ????????????????%#????????????????????????????? | | ??????????????# ????????????????????????????? | | ##????????????#%! ##??????????????????????????? | | ##??????????# ###????????????????????????? | | #??????????? ##???????????????????????? | | #???????????? ###?????????????????????? | | ##????????????# [ ??????????????????????? | | ##?????????????# % ??????????????????????? | | ##?????????????# = ???????????????????????? | | #?????????????# u####????????????????????? | | #??????????????# # #????????????????????? | | ##???????????#### ####?????????????????? | | #????????????# # ##????????????????? | | ????????????## ##???????????????? | | ??????????### #???????????????? | | ??????????# # % @ < #???????????????? | | ??????##### # * ! #???????????????? | | ??????# d | ! ##???????????????? | | #?????# # # ##????????????????? | | #?????# # # #?????????????????? | | ####### # ### ## #????????????????? | | % # # ???????????????? | | ####### # ## # ### " ?????????????? | | #?????# ## #### # ## ?? ?????????????? | | #?????## #### #??# ## ?? ????????????? | | #?????# #??# #??# # # #?? ????????????? | | #?????# #### #??# # ??? ???????????? | | ##?????# %= #??# ???? ?????????????? | | ???????########??# ##????? ?????????????? | | ?????????????????# #????????????????????? | | ?????????????????## ##????????????????????? | | ??????????????????#######?????????????????????? | | ??????????????????????????????????????????????? | | | | | | | | | | | | | | | +----------------------------------------------------+ Best States ------------- Heat Dissipation 28 Energy Generation 5 Energy Capacity 100 Matter Stores 300 Matter Capacity 300 Sight Range 16 Terrain Scan Density 10 Evasion (%) 50 Item Schematics ----------------- None Robot Schematics ------------------ None Fabricated ------------ Nothing Alien Tech Used ----------------- None Achievements -------------- None Challenges ------------ None Game ------ Seed CoolingWeightManipulator Manual? 0 Play Time 00:08:25 Cumulative 66.7 hours Start 2021.11.25 @ 01:13:36 End 2021.11.25 @ 01:19:39 Sessions 1 Manual Loads 0 Difficulty Rogue Special Mode None Game No. 40 Rogue 40 Adventurer 0 Explorer 0 Win Type - Total 1 Types 1/0/0/0/0/0/0/0/0 Lore% 33 Gallery% 47 Achievement% 39 Wizard Run 0 Options --------- ASCII 0 Keyboard 0 Movement Mouse Keybinds 0 Fullscreen 0 Font 28/SmallcapsGlow Map View 72x54 Tactical HUD 1 Map Filters NONE Filters NONE Steam 1 RUN: 8f197105-2ace-46a4-9c3a-bc62f70ff655